[Event "Titled Tuesday Blitz November 01 Early 2022"]
[White "Lopez, Henry"]
[Black "Hoffmann, Asa"]
[WhiteFideId "5203830"]
[BlackFideId "2001470"]
[WhiteElo "2177"]
[BlackElo "2117"]
[Result "1/2-1/2"]
[Round "07"]
[TimeControl "180+1"]
[Date "2022.11.02"]
[WhiteClock "0:00:19"]
[BlackClock "0:00:02"]

1. d4 {[%clk 0:03:00]}  Nf6 {[%clk 0:02:57]} 2. Nf3 {[%clk 0:03:00]}  d6 {[%clk 0:02:54]} 3. c4 {[%clk 0:02:59]}  c6 {[%clk 0:02:53]} 4. Nc3 {[%clk 0:02:58]}  Bf5 {[%clk 0:02:52]} 5. Qb3 {[%clk 0:02:56]}  Qb6 {[%clk 0:02:51]} 6. Qa3 {[%clk 0:02:48]}  h6 {[%clk 0:02:50]} 7. Na4 {[%clk 0:02:41]}  Qc7 {[%clk 0:02:49]} 8. Nc3 {[%clk 0:02:40]}  e5 {[%clk 0:02:47]} 9. Qb3 {[%clk 0:02:38]}  Nbd7 {[%clk 0:02:43]} 10. g3 {[%clk 0:02:34]}  Be7 {[%clk 0:02:38]} 11. Bg2 {[%clk 0:02:34]}  O-O {[%clk 0:02:37]} 12. O-O {[%clk 0:02:34]}  Rfe8 {[%clk 0:02:37]} 13. Qd1 {[%clk 0:02:30]}  Rad8 {[%clk 0:02:35]} 14. Nh4 {[%clk 0:02:29]}  Bh7 {[%clk 0:02:35]} 15. e4 {[%clk 0:02:29]}  exd4 {[%clk 0:02:32]} 16. Qxd4 {[%clk 0:02:29]}  Bf8 {[%clk 0:02:31]} 17. Nf5 {[%clk 0:02:27]}  Nc5 {[%clk 0:02:29]} 18. Bf4 {[%clk 0:02:21]}  Ne6 {[%clk 0:02:13]} 19. Qd2 {[%clk 0:02:13]}  Bxf5 {[%clk 0:02:06]} 20. exf5 {[%clk 0:02:12]}  Nxf4 {[%clk 0:02:05]} 21. Qxf4 {[%clk 0:02:12]}  Re5 {[%clk 0:02:03]} 22. Rad1 {[%clk 0:02:10]}  Rde8 {[%clk 0:02:02]} 23. g4 {[%clk 0:02:04]}  Qb6 {[%clk 0:02:01]} 24. Rd2 {[%clk 0:01:59]}  Qb4 {[%clk 0:01:59]} 25. Qd4 {[%clk 0:01:46]}  Qc5 {[%clk 0:01:47]} 26. h3 {[%clk 0:01:45]}  a5 {[%clk 0:01:43]} 27. Bf3 {[%clk 0:01:43]}  Qb4 {[%clk 0:01:35]} 28. Kg2 {[%clk 0:01:43]}  Nd7 {[%clk 0:01:26]} 29. Rc1 {[%clk 0:01:23]}  Re1 {[%clk 0:01:21]} 30. Rxe1 {[%clk 0:01:18]}  Rxe1 {[%clk 0:01:20]} 31. Ne4 {[%clk 0:01:17]}  Ne5 {[%clk 0:01:14]} 32. Nxd6 {[%clk 0:01:14]}  Bxd6 {[%clk 0:01:09]} 33. Qxd6 {[%clk 0:01:14]}  Qxd6 {[%clk 0:01:00]} 34. Rxd6 {[%clk 0:01:13]}  Nxc4 {[%clk 0:00:58]} 35. Rd8+ {[%clk 0:01:13]}  Kh7 {[%clk 0:00:58]} 36. b3 {[%clk 0:01:13]}  Ne5 {[%clk 0:00:57]} 37. Rb8 {[%clk 0:01:11]}  Nxf3 {[%clk 0:00:52]} 38. Kxf3 {[%clk 0:01:11]}  Ra1 {[%clk 0:00:51]} 39. Rxb7 {[%clk 0:01:09]}  Rxa2 {[%clk 0:00:51]} 40. Rxf7 {[%clk 0:01:08]}  Rb2 {[%clk 0:00:49]} 41. f6 {[%clk 0:01:06]}  Rxb3+ {[%clk 0:00:48]} 42. Kg2 {[%clk 0:01:00]}  Kg6 {[%clk 0:00:45]} 43. Rxg7+ {[%clk 0:01:00]}  Kxf6 {[%clk 0:00:45]} 44. Rh7 {[%clk 0:01:00]}  Kg6 {[%clk 0:00:41]} 45. Rc7 {[%clk 0:00:57]}  Rc3 {[%clk 0:00:40]} 46. f4 {[%clk 0:00:54]}  a4 {[%clk 0:00:39]} 47. Ra7 {[%clk 0:00:54]}  a3 {[%clk 0:00:39]} 48. h4 {[%clk 0:00:53]}  h5 {[%clk 0:00:37]} 49. g5 {[%clk 0:00:49]}  Kf5 {[%clk 0:00:36]} 50. Ra4 {[%clk 0:00:49]}  Kg4 {[%clk 0:00:34]} 51. g6 {[%clk 0:00:49]}  Rg3+ {[%clk 0:00:26]} 52. Kf2 {[%clk 0:00:48]}  Rf3+ {[%clk 0:00:21]} 53. Ke2 {[%clk 0:00:47]}  Rg3 {[%clk 0:00:14]} 54. Kf2 {[%clk 0:00:40]}  Rf3+ {[%clk 0:00:14]} 55. Ke2 {[%clk 0:00:32]}  Rg3 {[%clk 0:00:14]} 56. Ra5 {[%clk 0:00:24]}  Kxf4 {[%clk 0:00:12]} 57. Rg5 {[%clk 0:00:20]}  Re3+ {[%clk 0:00:09]} 58. Kd2 {[%clk 0:00:20]}  Re8 {[%clk 0:00:09]} 59. Rxh5 {[%clk 0:00:18]}  a2 {[%clk 0:00:06]} 60. Ra5 {[%clk 0:00:17]}  Kg4 {[%clk 0:00:06]} 61. h5 {[%clk 0:00:17]}  a1=Q {[%clk 0:00:04]} 62. Rxa1 {[%clk 0:00:16]}  Kxh5 {[%clk 0:00:03]} 63. Rg1 {[%clk 0:00:16]}  Rg8 {[%clk 0:00:03]} 64. g7 {[%clk 0:00:16]}  Kh6 {[%clk 0:00:03]} 65. Kc3 {[%clk 0:00:16]}  Rxg7 {[%clk 0:00:03]} 66. Rxg7 {[%clk 0:00:17]}  Kxg7 {[%clk 0:00:02]} 67. Kc4 {[%clk 0:00:18]}  Kf7 {[%clk 0:00:02]} 68. Kc5 {[%clk 0:00:18]}  Ke7 {[%clk 0:00:02]} 69. Kxc6 {[%clk 0:00:19]} 1/2-1/2


[Site "https://www.chess.com"]

[Event "Titled Tuesday Blitz November 01 Early 2022"]
[White "Makhmudov, Shukhrat"]
[Black "Selkirk, Rebecca"]
[WhiteFideId "14200775"]
[BlackFideId "14306514"]
[WhiteElo "2135"]
[BlackElo "1649"]
[Result "1-0"]
[Round "07"]
[TimeControl "180+1"]
[Date "2022.11.02"]
[WhiteClock "0:00:07"]
[BlackClock "0:00:01"]

1. e4 {[%clk 0:02:51]}  c6 {[%clk 0:02:52]} 2. d4 {[%clk 0:02:40]}  d5 {[%clk 0:02:49]} 3. Nc3 {[%clk 0:02:40]}  dxe4 {[%clk 0:02:38]} 4. Nxe4 {[%clk 0:02:34]}  Nf6 {[%clk 0:02:26]} 5. Nxf6+ {[%clk 0:02:28]}  exf6 {[%clk 0:02:27]} 6. c3 {[%clk 0:02:28]}  Bd6 {[%clk 0:02:09]} 7. Bd3 {[%clk 0:02:28]}  O-O {[%clk 0:02:05]} 8. Qc2 {[%clk 0:02:28]}  g6 {[%clk 0:02:03]} 9. Ne2 {[%clk 0:02:27]}  c5 {[%clk 0:01:58]} 10. dxc5 {[%clk 0:02:20]}  Bxc5 {[%clk 0:01:59]} 11. Bh6 {[%clk 0:02:20]}  Re8 {[%clk 0:01:58]} 12. O-O-O {[%clk 0:02:20]}  Qb6 {[%clk 0:01:55]} 13. f3 {[%clk 0:01:33]}  Nc6 {[%clk 0:01:45]} 14. Kb1 {[%clk 0:01:29]}  a5 {[%clk 0:01:40]} 15. Ng3 {[%clk 0:01:28]}  f5 {[%clk 0:01:34]} 16. h4 {[%clk 0:01:24]}  Be6 {[%clk 0:01:23]} 17. h5 {[%clk 0:01:22]}  Qc7 {[%clk 0:01:23]} 18. Ne2 {[%clk 0:01:20]}  b5 {[%clk 0:01:16]} 19. hxg6 {[%clk 0:01:14]}  fxg6 {[%clk 0:01:12]} 20. Bxb5 {[%clk 0:01:03]}  Reb8 {[%clk 0:01:04]} 21. a4 {[%clk 0:00:55]}  Na7 {[%clk 0:00:52]} 22. Bf4 {[%clk 0:00:55]}  Qb6 {[%clk 0:00:47]} 23. Bxb8 {[%clk 0:00:48]}  Rxb8 {[%clk 0:00:48]} 24. c4 {[%clk 0:00:46]}  Nxb5 {[%clk 0:00:43]} 25. cxb5 {[%clk 0:00:41]}  Bf7 {[%clk 0:00:41]} 26. Nc3 {[%clk 0:00:41]}  Bb4 {[%clk 0:00:40]} 27. Rd7 {[%clk 0:00:36]}  Qe6 {[%clk 0:00:37]} 28. Qd2 {[%clk 0:00:26]}  Bxc3 {[%clk 0:00:30]} 29. bxc3 {[%clk 0:00:23]}  Qb3+ {[%clk 0:00:30]} 30. Kc1 {[%clk 0:00:17]}  Qa3+ {[%clk 0:00:22]} 31. Qb2 {[%clk 0:00:16]}  Qxa4 {[%clk 0:00:19]} 32. Rxf7 {[%clk 0:00:15]}  Kxf7 {[%clk 0:00:18]} 33. Rxh7+ {[%clk 0:00:14]}  Ke6 {[%clk 0:00:19]} 34. Qe2+ {[%clk 0:00:12]}  Kd6 {[%clk 0:00:18]} 35. Qe7+ {[%clk 0:00:11]}  Kd5 {[%clk 0:00:18]} 36. Qd7+ {[%clk 0:00:10]}  Kc4 {[%clk 0:00:19]} 37. Qc7+ {[%clk 0:00:09]}  Kd3 {[%clk 0:00:18]} 38. Rd7+ {[%clk 0:00:08]}  Ke2 {[%clk 0:00:18]} 39. Qe5+ {[%clk 0:00:07]}  Kf2 {[%clk 0:00:16]} 40. Rd2+ {[%clk 0:00:06]}  Kg1 {[%clk 0:00:16]} 41. Rd1+ {[%clk 0:00:07]}  Kf2 {[%clk 0:00:15]} 42. Qxb8 {[%clk 0:00:06]}  Qa1+ {[%clk 0:00:13]} 43. Kd2 {[%clk 0:00:06]}  Qb2+ {[%clk 0:00:12]} 44. Kd3 {[%clk 0:00:07]}  Qe2+ {[%clk 0:00:12]} 45. Kd4 {[%clk 0:00:07]}  Qxd1+ {[%clk 0:00:12]} 46. Kc4 {[%clk 0:00:08]}  Qe2+ {[%clk 0:00:12]} 47. Kc5 {[%clk 0:00:08]}  Qe7+ {[%clk 0:00:09]} 48. Qd6 {[%clk 0:00:07]}  Qa7+ {[%clk 0:00:05]} 49. b6 {[%clk 0:00:07]}  Qb7 {[%clk 0:00:04]} 50. Qc6 {[%clk 0:00:08]}  Qe7+ {[%clk 0:00:04]} 51. Kb5 {[%clk 0:00:08]}  Qa3 {[%clk 0:00:01]} 52. Ka6 {[%clk 0:00:07]} 1-0


[Site "https://www.chess.com"]

[Event "Titled Tuesday Blitz November 01 Early 2022"]
[White "Manelyuk, Daniil"]
[Black "Nozdrachev, Leonid"]
[WhiteFideId "44173920"]
[BlackFideId "24113433"]
[WhiteElo "2209"]
[BlackElo "2249"]
[Result "0-1"]
[Round "07"]
[TimeControl "180+1"]
[Date "2022.11.02"]
[WhiteClock "0:00:02"]
[BlackClock "0:00:47"]

1. e4 {[%clk 0:02:37]}  c6 {[%clk 0:02:43]} 2. d4 {[%clk 0:02:34]}  d5 {[%clk 0:02:41]} 3. e5 {[%clk 0:02:34]}  Bf5 {[%clk 0:02:40]} 4. h4 {[%clk 0:02:34]}  h5 {[%clk 0:02:39]} 5. Bd3 {[%clk 0:02:34]}  Bxd3 {[%clk 0:02:37]} 6. Qxd3 {[%clk 0:02:35]}  Qa5+ {[%clk 0:02:37]} 7. b4 {[%clk 0:02:32]}  Qa6 {[%clk 0:02:38]} 8. b5 {[%clk 0:02:19]}  Qxb5 {[%clk 0:02:37]} 9. Qxb5 {[%clk 0:02:18]}  cxb5 {[%clk 0:02:38]} 10. Nc3 {[%clk 0:02:19]}  Nc6 {[%clk 0:02:37]} 11. Nxd5 {[%clk 0:02:13]}  Nxd4 {[%clk 0:02:37]} 12. Nc7+ {[%clk 0:01:55]}  Kd7 {[%clk 0:02:35]} 13. Nxa8 {[%clk 0:01:55]}  Nxc2+ {[%clk 0:02:34]} 14. Kd2 {[%clk 0:01:53]}  Nxa1 {[%clk 0:02:35]} 15. Bb2 {[%clk 0:01:51]}  e6 {[%clk 0:02:32]} 16. Nf3 {[%clk 0:01:47]}  Bb4+ {[%clk 0:02:28]} 17. Ke2 {[%clk 0:01:38]}  Nh6 {[%clk 0:02:25]} 18. Rd1+ {[%clk 0:01:33]}  Kc8 {[%clk 0:02:20]} 19. Rc1+ {[%clk 0:01:24]}  Kb8 {[%clk 0:02:19]} 20. Nc7 {[%clk 0:01:23]}  Rc8 {[%clk 0:02:19]} 21. Nxb5 {[%clk 0:01:23]}  Rxc1 {[%clk 0:02:16]} 22. Bxc1 {[%clk 0:01:23]}  Nc2 {[%clk 0:02:17]} 23. Kd3 {[%clk 0:01:00]}  Ne1+ {[%clk 0:02:16]} 24. Nxe1 {[%clk 0:01:00]}  Bxe1 {[%clk 0:02:17]} 25. Bxh6 {[%clk 0:00:59]}  gxh6 {[%clk 0:02:17]} 26. f4 {[%clk 0:00:22]}  Bxh4 {[%clk 0:02:12]} 27. Nd6 {[%clk 0:00:22]}  f6 {[%clk 0:02:12]} 28. f5 {[%clk 0:00:19]}  fxe5 {[%clk 0:02:07]} 29. fxe6 {[%clk 0:00:19]}  Kc7 {[%clk 0:02:05]} 30. Nf5 {[%clk 0:00:18]}  Bf6 {[%clk 0:02:02]} 31. Ke4 {[%clk 0:00:18]}  b5 {[%clk 0:01:57]} 32. Nxh6 {[%clk 0:00:14]}  b4 {[%clk 0:01:50]} 33. Kf5 {[%clk 0:00:14]}  Be7 {[%clk 0:01:43]} 34. Kxe5 {[%clk 0:00:14]}  a5 {[%clk 0:01:43]} 35. Nf5 {[%clk 0:00:13]}  Kd8 {[%clk 0:01:40]} 36. Kd5 {[%clk 0:00:13]}  a4 {[%clk 0:01:37]} 37. Nd4 {[%clk 0:00:12]}  Kc7 {[%clk 0:01:34]} 38. Nb5+ {[%clk 0:00:09]}  Kb6 {[%clk 0:01:33]} 39. Nd4 {[%clk 0:00:10]}  Bf6 {[%clk 0:01:29]} 40. Nc2 {[%clk 0:00:03]}  b3 {[%clk 0:01:28]} 41. axb3 {[%clk 0:00:04]}  axb3 {[%clk 0:01:29]} 42. Na3 {[%clk 0:00:05]}  Be7 {[%clk 0:01:21]} 43. Nc4+ {[%clk 0:00:03]}  Kb5 {[%clk 0:01:21]} 44. Nd2 {[%clk 0:00:02]}  b2 {[%clk 0:00:59]} 45. Nb1 {[%clk 0:00:03]}  Kb4 {[%clk 0:00:58]} 46. Kc6 {[%clk 0:00:03]}  Kb3 {[%clk 0:00:51]} 47. Kd7 {[%clk 0:00:03]}  Kc2 {[%clk 0:00:51]} 48. Na3+ {[%clk 0:00:02]}  Bxa3 {[%clk 0:00:50]} 49. e7 {[%clk 0:00:02]}  Bxe7 {[%clk 0:00:49]} 50. Kxe7 {[%clk 0:00:02]}  b1=Q {[%clk 0:00:47]} 0-1


[Site "https://www.chess.com"]

[Event "Titled Tuesday Blitz November 01 Early 2022"]
[White "Martinez, Shawn"]
[Black "Turutin, Alexander"]
[WhiteFideId "2039770"]
[BlackFideId "4180623"]
[WhiteElo "2174"]
[BlackElo "2402"]
[Result "0-1"]
[Round "07"]
[TimeControl "180+1"]
[Date "2022.11.02"]
[WhiteClock "0:00:03"]
[BlackClock "0:00:05"]

1. e4 {[%clk 0:03:00]}  c6 {[%clk 0:02:54]} 2. d4 {[%clk 0:02:57]}  d5 {[%clk 0:02:54]} 3. exd5 {[%clk 0:02:57]}  cxd5 {[%clk 0:02:54]} 4. Nf3 {[%clk 0:02:55]}  Nc6 {[%clk 0:02:53]} 5. Ne5 {[%clk 0:02:54]}  Nxe5 {[%clk 0:02:13]} 6. dxe5 {[%clk 0:02:41]}  e6 {[%clk 0:02:11]} 7. Bd3 {[%clk 0:02:38]}  Ne7 {[%clk 0:02:11]} 8. O-O {[%clk 0:02:26]}  Nc6 {[%clk 0:01:50]} 9. f4 {[%clk 0:02:17]}  Bc5+ {[%clk 0:01:49]} 10. Kh1 {[%clk 0:02:15]}  O-O {[%clk 0:01:46]} 11. Nd2 {[%clk 0:02:04]}  Nb4 {[%clk 0:01:30]} 12. Be2 {[%clk 0:01:58]}  f6 {[%clk 0:01:29]} 13. Nf3 {[%clk 0:01:51]}  fxe5 {[%clk 0:01:24]} 14. fxe5 {[%clk 0:01:44]}  h6 {[%clk 0:01:04]} 15. c3 {[%clk 0:01:40]}  Nc6 {[%clk 0:01:05]} 16. Bd3 {[%clk 0:01:40]}  Bd7 {[%clk 0:00:56]} 17. Bc2 {[%clk 0:01:13]}  Qe7 {[%clk 0:00:19]} 18. Qd3 {[%clk 0:01:11]}  g5 {[%clk 0:00:20]} 19. h3 {[%clk 0:00:57]}  Qg7 {[%clk 0:00:20]} 20. Bd2 {[%clk 0:00:48]}  Be8 {[%clk 0:00:18]} 21. Rae1 {[%clk 0:00:42]}  Ne7 {[%clk 0:00:18]} 22. Nh2 {[%clk 0:00:35]}  a6 {[%clk 0:00:18]} 23. Ng4 {[%clk 0:00:35]}  Bg6 {[%clk 0:00:17]} 24. Nf6+ {[%clk 0:00:27]}  Kh8 {[%clk 0:00:17]} 25. Qf3 {[%clk 0:00:17]}  Bxc2 {[%clk 0:00:17]} 26. b4 {[%clk 0:00:15]}  Bb6 {[%clk 0:00:17]} 27. Be3 {[%clk 0:00:09]}  Bxe3 {[%clk 0:00:15]} 28. Rxe3 {[%clk 0:00:10]}  Ng6 {[%clk 0:00:15]} 29. Qg3 {[%clk 0:00:09]}  Bf5 {[%clk 0:00:14]} 30. Ref3 {[%clk 0:00:05]}  Rac8 {[%clk 0:00:07]} 31. Nh5 {[%clk 0:00:05]}  Qxe5 {[%clk 0:00:06]} 32. Qf2 {[%clk 0:00:03]}  Rxc3 {[%clk 0:00:06]} 33. g4 {[%clk 0:00:03]}  Rxf3 {[%clk 0:00:05]} 0-1


[Site "https://www.chess.com"]

[Event "Titled Tuesday Blitz November 01 Early 2022"]
[White "Maximov, Dmitry"]
[Black "Tleptsok, Ruslan"]
[WhiteFideId "14105659"]
[BlackFideId "24104485"]
[WhiteElo "2494"]
[BlackElo "2130"]
[Result "0-1"]
[Round "07"]
[TimeControl "180+1"]
[Date "2022.11.02"]
[WhiteClock "0:00:02"]
[BlackClock "0:00:13"]

1. e4 {[%clk 0:03:00]}  d5 {[%clk 0:03:00]} 2. exd5 {[%clk 0:03:00]}  Nf6 {[%clk 0:02:59]} 3. Nc3 {[%clk 0:02:59]}  Nxd5 {[%clk 0:02:59]} 4. Bc4 {[%clk 0:03:00]}  c6 {[%clk 0:02:59]} 5. Qf3 {[%clk 0:02:59]}  e6 {[%clk 0:02:59]} 6. Nge2 {[%clk 0:02:58]}  Nd7 {[%clk 0:02:58]} 7. d4 {[%clk 0:02:57]}  Be7 {[%clk 0:02:58]} 8. Ne4 {[%clk 0:02:57]}  O-O {[%clk 0:02:58]} 9. c3 {[%clk 0:02:56]}  e5 {[%clk 0:02:57]} 10. Bxd5 {[%clk 0:02:35]}  cxd5 {[%clk 0:02:56]} 11. N4g3 {[%clk 0:02:35]}  e4 {[%clk 0:02:54]} 12. Qe3 {[%clk 0:02:34]}  Bd6 {[%clk 0:02:45]} 13. Nf5 {[%clk 0:02:29]}  Bb8 {[%clk 0:02:42]} 14. Neg3 {[%clk 0:02:23]}  Nf6 {[%clk 0:02:36]} 15. Qg5 {[%clk 0:02:22]}  Bxf5 {[%clk 0:02:29]} 16. Nxf5 {[%clk 0:02:21]}  g6 {[%clk 0:02:30]} 17. Nh6+ {[%clk 0:02:05]}  Kg7 {[%clk 0:02:28]} 18. h4 {[%clk 0:02:03]}  Ng8 {[%clk 0:02:24]} 19. Nf5+ {[%clk 0:01:36]}  Kh8 {[%clk 0:02:24]} 20. Ne3 {[%clk 0:01:36]}  Qxg5 {[%clk 0:02:14]} 21. hxg5 {[%clk 0:01:36]}  Rd8 {[%clk 0:02:14]} 22. Ng4 {[%clk 0:01:36]}  Kg7 {[%clk 0:02:13]} 23. Be3 {[%clk 0:01:30]}  b5 {[%clk 0:02:07]} 24. Ke2 {[%clk 0:01:28]}  a5 {[%clk 0:02:05]} 25. Rh3 {[%clk 0:01:26]}  b4 {[%clk 0:02:05]} 26. Rah1 {[%clk 0:01:25]}  h5 {[%clk 0:02:03]} 27. gxh6+ {[%clk 0:01:25]}  Kh7 {[%clk 0:02:02]} 28. Bg5 {[%clk 0:01:19]}  Re8 {[%clk 0:01:59]} 29. Nf6+ {[%clk 0:01:08]}  Nxf6 {[%clk 0:01:58]} 30. Bxf6 {[%clk 0:01:09]}  Bd6 {[%clk 0:01:51]} 31. Rc1 {[%clk 0:00:51]}  Bf4 {[%clk 0:01:41]} 32. Rc2 {[%clk 0:00:49]}  Rac8 {[%clk 0:01:38]} 33. g3 {[%clk 0:00:32]}  Bd6 {[%clk 0:01:33]} 34. Rh1 {[%clk 0:00:32]}  Rc4 {[%clk 0:01:31]} 35. Rhc1 {[%clk 0:00:32]}  Rec8 {[%clk 0:01:30]} 36. Bg5 {[%clk 0:00:31]}  a4 {[%clk 0:01:28]} 37. Kd1 {[%clk 0:00:23]}  Bf8 {[%clk 0:01:18]} 38. Be3 {[%clk 0:00:19]}  b3 {[%clk 0:01:09]} 39. axb3 {[%clk 0:00:19]}  axb3 {[%clk 0:01:10]} 40. Re2 {[%clk 0:00:18]}  Bxh6 {[%clk 0:01:07]} 41. Ra1 {[%clk 0:00:17]}  R4c6 {[%clk 0:00:50]} 42. Ra3 {[%clk 0:00:15]}  Rb6 {[%clk 0:00:49]} 43. Kd2 {[%clk 0:00:15]}  g5 {[%clk 0:00:45]} 44. Re1 {[%clk 0:00:15]}  f5 {[%clk 0:00:44]} 45. Rh1 {[%clk 0:00:14]}  Kg6 {[%clk 0:00:44]} 46. Ke2 {[%clk 0:00:11]}  f4 {[%clk 0:00:43]} 47. Bd2 {[%clk 0:00:11]}  f3+ {[%clk 0:00:41]} 48. Kd1 {[%clk 0:00:09]}  Bg7 {[%clk 0:00:34]} 49. Be3 {[%clk 0:00:08]}  Bf6 {[%clk 0:00:33]} 50. Kd2 {[%clk 0:00:08]}  Kf5 {[%clk 0:00:31]} 51. Ra5 {[%clk 0:00:08]}  Rd8 {[%clk 0:00:30]} 52. Rh7 {[%clk 0:00:07]}  Kg6 {[%clk 0:00:25]} 53. Rc7 {[%clk 0:00:06]}  Rbd6 {[%clk 0:00:23]} 54. Rb7 {[%clk 0:00:06]}  Rh8 {[%clk 0:00:16]} 55. Rxb3 {[%clk 0:00:06]}  Rh1 {[%clk 0:00:16]} 56. Rbb5 {[%clk 0:00:07]}  Rb1 {[%clk 0:00:14]} 57. Kc2 {[%clk 0:00:07]}  Re1 {[%clk 0:00:12]} 58. Rxd5 {[%clk 0:00:03]}  Re2+ {[%clk 0:00:12]} 59. Kb3 {[%clk 0:00:02]}  Rb6+ {[%clk 0:00:13]} 0-1


[Site "https://www.chess.com"]

[Event "Titled Tuesday Blitz November 01 Early 2022"]
[White "Migot, Tangi"]
[Black "Gu, Xiaobing"]
[WhiteFideId "662445"]
[BlackFideId "8602611"]
[WhiteElo "2585"]
[BlackElo "2174"]
[Result "1-0"]
[Round "07"]
[TimeControl "180+1"]
[Date "2022.11.02"]
[WhiteClock "0:00:21"]
[BlackClock "0:00:17"]

1. f4 {[%clk 0:03:00]}  d5 {[%clk 0:02:54]} 2. e3 {[%clk 0:03:01]}  c5 {[%clk 0:02:42]} 3. c3 {[%clk 0:03:00]}  d4 {[%clk 0:02:38]} 4. Nf3 {[%clk 0:02:59]}  dxe3 {[%clk 0:02:28]} 5. dxe3 {[%clk 0:02:59]}  Qxd1+ {[%clk 0:02:27]} 6. Kxd1 {[%clk 0:03:00]}  Nf6 {[%clk 0:02:27]} 7. Bb5+ {[%clk 0:02:58]}  Bd7 {[%clk 0:02:24]} 8. a4 {[%clk 0:02:58]}  Nc6 {[%clk 0:02:22]} 9. Ke2 {[%clk 0:02:57]}  O-O-O {[%clk 0:02:20]} 10. Nbd2 {[%clk 0:02:49]}  a6 {[%clk 0:02:15]} 11. Bc4 {[%clk 0:02:47]}  e6 {[%clk 0:01:52]} 12. e4 {[%clk 0:02:46]}  Ne8 {[%clk 0:01:43]} 13. e5 {[%clk 0:02:44]}  Nc7 {[%clk 0:01:43]} 14. Ne4 {[%clk 0:02:43]}  Kb8 {[%clk 0:01:38]} 15. Be3 {[%clk 0:02:42]}  b6 {[%clk 0:01:33]} 16. g3 {[%clk 0:02:39]}  Kb7 {[%clk 0:01:33]} 17. Rhd1 {[%clk 0:02:27]}  Na5 {[%clk 0:01:31]} 18. Bd3 {[%clk 0:02:27]}  Nd5 {[%clk 0:01:31]} 19. Bc2 {[%clk 0:02:02]}  Be7 {[%clk 0:01:24]} 20. Bd2 {[%clk 0:01:52]}  c4 {[%clk 0:01:09]} 21. Nd4 {[%clk 0:01:43]}  Nc6 {[%clk 0:01:06]} 22. Be1 {[%clk 0:01:35]}  Nxd4+ {[%clk 0:00:59]} 23. Rxd4 {[%clk 0:01:36]}  b5 {[%clk 0:01:00]} 24. b3 {[%clk 0:01:24]}  cxb3 {[%clk 0:00:56]} 25. Bxb3 {[%clk 0:01:24]}  Bc6 {[%clk 0:00:55]} 26. Rad1 {[%clk 0:00:59]}  Nb6 {[%clk 0:00:55]} 27. axb5 {[%clk 0:00:54]}  axb5 {[%clk 0:00:51]} 28. Rxd8 {[%clk 0:00:54]}  Rxd8 {[%clk 0:00:50]} 29. Rxd8 {[%clk 0:00:54]}  Bxd8 {[%clk 0:00:50]} 30. Nd6+ {[%clk 0:00:54]}  Kb8 {[%clk 0:00:46]} 31. Nxf7 {[%clk 0:00:53]}  Be7 {[%clk 0:00:46]} 32. Bxe6 {[%clk 0:00:50]}  Kc7 {[%clk 0:00:38]} 33. Bf5 {[%clk 0:00:29]}  Nd5 {[%clk 0:00:38]} 34. Bxh7 {[%clk 0:00:25]}  Be8 {[%clk 0:00:32]} 35. Ng5 {[%clk 0:00:24]}  Bh5+ {[%clk 0:00:25]} 36. Kd3 {[%clk 0:00:22]}  Bc5 {[%clk 0:00:24]} 37. Ne4 {[%clk 0:00:19]}  Bb6 {[%clk 0:00:23]} 38. Bg8 {[%clk 0:00:20]}  Bg6 {[%clk 0:00:23]} 39. Bxd5 {[%clk 0:00:19]}  Kd7 {[%clk 0:00:21]} 40. Bd2 {[%clk 0:00:20]}  Bg1 {[%clk 0:00:20]} 41. Be3 {[%clk 0:00:20]}  Bxh2 {[%clk 0:00:19]} 42. Bf2 {[%clk 0:00:21]}  Bf5 {[%clk 0:00:19]} 43. Kd4 {[%clk 0:00:21]}  b4 {[%clk 0:00:18]} 44. cxb4 {[%clk 0:00:20]}  Bxe4 {[%clk 0:00:17]} 45. Kxe4 {[%clk 0:00:20]}  Ke7 {[%clk 0:00:17]} 46. Kf3 {[%clk 0:00:21]} 1-0


[Site "https://www.chess.com"]

[Event "Titled Tuesday Blitz November 01 Early 2022"]
[White "Muminova, Nafisa"]
[Black "Sailer, Mike"]
[WhiteFideId "14201526"]
[BlackFideId "2012901"]
[WhiteElo "2258"]
[BlackElo "2109"]
[Result "1-0"]
[Round "07"]
[TimeControl "180+1"]
[Date "2022.11.02"]
[WhiteClock "0:01:39"]
[BlackClock "0:01:55"]

1. e4 {[%clk 0:03:00]}  d5 {[%clk 0:02:59]} 2. exd5 {[%clk 0:02:59]}  Qxd5 {[%clk 0:03:00]} 3. Nc3 {[%clk 0:03:00]}  Qd6 {[%clk 0:02:59]} 4. d4 {[%clk 0:02:52]}  Nf6 {[%clk 0:02:59]} 5. Bd3 {[%clk 0:02:51]}  c6 {[%clk 0:02:52]} 6. Nge2 {[%clk 0:02:50]}  Bg4 {[%clk 0:02:52]} 7. f3 {[%clk 0:02:49]}  Bh5 {[%clk 0:02:51]} 8. Bf4 {[%clk 0:02:49]}  Qd8 {[%clk 0:02:51]} 9. Qd2 {[%clk 0:02:49]}  e6 {[%clk 0:02:49]} 10. O-O-O {[%clk 0:02:49]}  Nbd7 {[%clk 0:02:49]} 11. Bg5 {[%clk 0:02:33]}  Be7 {[%clk 0:02:44]} 12. Nf4 {[%clk 0:02:32]}  Bg6 {[%clk 0:02:44]} 13. Nxg6 {[%clk 0:02:32]}  hxg6 {[%clk 0:02:45]} 14. h4 {[%clk 0:02:30]}  Qa5 {[%clk 0:02:41]} 15. Kb1 {[%clk 0:02:23]}  Bb4 {[%clk 0:02:38]} 16. g4 {[%clk 0:02:06]}  O-O-O {[%clk 0:02:37]} 17. Bc4 {[%clk 0:01:58]}  Nb6 {[%clk 0:02:30]} 18. Bb3 {[%clk 0:01:57]}  Nbd5 {[%clk 0:02:09]} 19. Bxf6 {[%clk 0:01:46]}  Nxc3+ {[%clk 0:01:56]} 20. bxc3 {[%clk 0:01:45]}  Bxc3 {[%clk 0:01:57]} 21. Bxd8 {[%clk 0:01:43]}  Bxd2 {[%clk 0:01:55]} 22. Bxa5 {[%clk 0:01:39]}  Bxa5 {[%clk 0:01:55]} 1-0


[Site "https://www.chess.com"]

[Event "Titled Tuesday Blitz November 01 Early 2022"]
[White "Odegov, Artem"]
[Black "Shubenkova, Veronika"]
[WhiteFideId "34183644"]
[BlackFideId "44124040"]
[WhiteElo "2298"]
[BlackElo "2027"]
[Result "1-0"]
[Round "07"]
[TimeControl "180+1"]
[Date "2022.11.02"]
[WhiteClock "0:00:54"]
[BlackClock "0:00:17"]

1. d4 {[%clk 0:03:00]}  d5 {[%clk 0:02:59]} 2. c4 {[%clk 0:03:01]}  e6 {[%clk 0:03:00]} 3. Nf3 {[%clk 0:03:00]}  Nf6 {[%clk 0:03:00]} 4. Nc3 {[%clk 0:03:00]}  c6 {[%clk 0:03:00]} 5. Bg5 {[%clk 0:03:01]}  Be7 {[%clk 0:03:00]} 6. e3 {[%clk 0:03:01]}  O-O {[%clk 0:03:00]} 7. Qc2 {[%clk 0:03:01]}  Nbd7 {[%clk 0:03:01]} 8. Rd1 {[%clk 0:02:59]}  Re8 {[%clk 0:03:01]} 9. h4 {[%clk 0:02:57]}  h6 {[%clk 0:03:00]} 10. Bxf6 {[%clk 0:02:53]}  Bxf6 {[%clk 0:02:57]} 11. g4 {[%clk 0:02:54]}  Be7 {[%clk 0:02:44]} 12. g5 {[%clk 0:02:53]}  f5 {[%clk 0:02:29]} 13. gxf6 {[%clk 0:02:50]}  Bxf6 {[%clk 0:02:26]} 14. Rg1 {[%clk 0:02:40]}  Nf8 {[%clk 0:02:22]} 15. h5 {[%clk 0:02:35]}  Qa5 {[%clk 0:02:19]} 16. Be2 {[%clk 0:02:29]}  Bd7 {[%clk 0:02:19]} 17. Kf1 {[%clk 0:02:26]}  e5 {[%clk 0:02:19]} 18. dxe5 {[%clk 0:02:18]}  Bh3+ {[%clk 0:02:19]} 19. Ke1 {[%clk 0:02:17]}  Bxe5 {[%clk 0:02:19]} 20. cxd5 {[%clk 0:02:18]}  cxd5 {[%clk 0:02:16]} 21. Rxd5 {[%clk 0:02:16]}  Qb4 {[%clk 0:01:37]} 22. Nxe5 {[%clk 0:02:09]}  Rac8 {[%clk 0:01:30]} 23. Ng6 {[%clk 0:01:58]}  Ne6 {[%clk 0:01:22]} 24. Ne5 {[%clk 0:01:46]}  Rf8 {[%clk 0:00:53]} 25. Bg4 {[%clk 0:01:34]}  Bxg4 {[%clk 0:00:50]} 26. Rxg4 {[%clk 0:01:35]}  Qb6 {[%clk 0:00:33]} 27. Qg6 {[%clk 0:01:21]}  Rfe8 {[%clk 0:00:20]} 28. Qf7+ {[%clk 0:01:16]}  Kh8 {[%clk 0:00:20]} 29. Rg6 {[%clk 0:00:54]}  Qxb2 {[%clk 0:00:19]} 30. Rxh6+ {[%clk 0:00:53]}  gxh6 {[%clk 0:00:17]} 31. Ng6# {[%clk 0:00:54]} 1-0


[Site "https://www.chess.com"]